[Event "Titled Tuesday Blitz November 16 2021"]
[White "Atanasov, Anthony"]
[Black "Demchenko, Anton"]
[WhiteFideId "2623897"]
[BlackFideId "4160258"]
[WhiteElo "1928"]
[BlackElo "2583"]
[Result "0-1"]
[Round "01"]
[TimeControl "180+1"]
[Date "2021.11.16"]
[WhiteClock "0:00:01"]
[BlackClock "0:00:06"]

1. d4 {[%clk 0:03:00]}  Nf6 {[%clk 0:02:59]} 2. Nf3 {[%clk 0:02:56]}  d6 {[%clk 0:02:58]} 3. Bf4 {[%clk 0:02:56]}  g6 {[%clk 0:02:54]} 4. e3 {[%clk 0:02:56]}  Bg7 {[%clk 0:02:55]} 5. Be2 {[%clk 0:02:55]}  O-O {[%clk 0:02:55]} 6. O-O {[%clk 0:02:54]}  Nc6 {[%clk 0:02:55]} 7. h3 {[%clk 0:02:50]}  e5 {[%clk 0:02:51]} 8. dxe5 {[%clk 0:02:51]}  Ne4 {[%clk 0:02:51]} 9. Nbd2 {[%clk 0:02:44]}  dxe5 {[%clk 0:02:49]} 10. Bh2 {[%clk 0:02:37]}  Nd6 {[%clk 0:02:49]} 11. Nc4 {[%clk 0:02:34]}  Qe7 {[%clk 0:02:48]} 12. Nxd6 {[%clk 0:02:33]}  cxd6 {[%clk 0:02:49]} 13. e4 {[%clk 0:02:32]}  Be6 {[%clk 0:02:48]} 14. c3 {[%clk 0:02:27]}  Rad8 {[%clk 0:02:44]} 15. Qa4 {[%clk 0:02:25]}  d5 {[%clk 0:02:36]} 16. exd5 {[%clk 0:02:26]}  Bxd5 {[%clk 0:02:37]} 17. Rad1 {[%clk 0:02:25]}  h6 {[%clk 0:02:32]} 18. Rfe1 {[%clk 0:02:23]}  Qe6 {[%clk 0:02:23]} 19. Nd2 {[%clk 0:01:50]}  Qf5 {[%clk 0:01:47]} 20. Bc4 {[%clk 0:01:44]}  a6 {[%clk 0:01:30]} 21. Bxd5 {[%clk 0:01:39]}  Rxd5 {[%clk 0:01:31]} 22. Ne4 {[%clk 0:01:36]}  Rfd8 {[%clk 0:01:25]} 23. Rxd5 {[%clk 0:01:32]}  Rxd5 {[%clk 0:01:25]} 24. Qb3 {[%clk 0:01:28]}  Qd7 {[%clk 0:01:25]} 25. Bg3 {[%clk 0:01:13]}  Kh7 {[%clk 0:01:21]} 26. Bh4 {[%clk 0:00:58]}  g5 {[%clk 0:01:18]} 27. c4 {[%clk 0:00:41]}  Rd4 {[%clk 0:01:12]} 28. Qc2 {[%clk 0:00:22]}  f5 {[%clk 0:01:05]} 29. Nc5 {[%clk 0:00:19]}  Qf7 {[%clk 0:01:05]} 30. Bg3 {[%clk 0:00:19]}  Rxc4 {[%clk 0:00:59]} 31. Qb3 {[%clk 0:00:18]}  Nd4 {[%clk 0:00:49]} 32. Qxb7 {[%clk 0:00:17]}  Qxb7 {[%clk 0:00:49]} 33. Nxb7 {[%clk 0:00:17]}  f4 {[%clk 0:00:50]} 34. Bh2 {[%clk 0:00:16]}  Rb4 {[%clk 0:00:49]} 35. Nc5 {[%clk 0:00:15]}  Rxb2 {[%clk 0:00:47]} 36. Nxa6 {[%clk 0:00:15]}  Rxa2 {[%clk 0:00:48]} 37. Nb4 {[%clk 0:00:14]}  Rd2 {[%clk 0:00:45]} 38. Kf1 {[%clk 0:00:10]}  Kg6 {[%clk 0:00:41]} 39. f3 {[%clk 0:00:10]}  Bf8 {[%clk 0:00:42]} 40. Nd5 {[%clk 0:00:09]}  Kf5 {[%clk 0:00:35]} 41. Nc3 {[%clk 0:00:02]}  Nc2 {[%clk 0:00:34]} 42. Ne4 {[%clk 0:00:01]}  Rd7 {[%clk 0:00:21]} 43. Rc1 {[%clk 0:00:01]}  Ne3+ {[%clk 0:00:22]} 44. Kg1 {[%clk 0:00:02]}  Be7 {[%clk 0:00:17]} 45. g4+ {[%clk 0:00:02]}  Kg6 {[%clk 0:00:14]} 46. Rc6+ {[%clk 0:00:02]}  Kg7 {[%clk 0:00:14]} 47. Rc1 {[%clk 0:00:03]}  Ra7 {[%clk 0:00:14]} 48. Kh1 {[%clk 0:00:03]}  Ra2 {[%clk 0:00:12]} 49. Bg1 {[%clk 0:00:03]}  Nc2 {[%clk 0:00:12]} 50. Rd1 {[%clk 0:00:03]}  Kf7 {[%clk 0:00:12]} 51. Rd7 {[%clk 0:00:04]}  Ke6 {[%clk 0:00:13]} 52. Rc7 {[%clk 0:00:04]}  Nb4 {[%clk 0:00:11]} 53. Rxe7+ {[%clk 0:00:03]}  Kxe7 {[%clk 0:00:12]} 54. Bc5+ {[%clk 0:00:04]}  Ke6 {[%clk 0:00:12]} 55. Bxb4 {[%clk 0:00:05]}  Rb2 {[%clk 0:00:12]} 56. Bd2 {[%clk 0:00:04]}  Kd5 {[%clk 0:00:11]} 57. Kg2 {[%clk 0:00:05]}  Kd4 {[%clk 0:00:10]} 58. Kf1 {[%clk 0:00:03]}  Kd3 {[%clk 0:00:10]} 59. Be1 {[%clk 0:00:03]}  Rb1 {[%clk 0:00:10]} 60. Nf2+ {[%clk 0:00:02]}  Kd4 {[%clk 0:00:09]} 61. Ke2 {[%clk 0:00:02]}  Rb2+ {[%clk 0:00:09]} 62. Bd2 {[%clk 0:00:02]}  Ra2 {[%clk 0:00:09]} 63. Ne4 {[%clk 0:00:03]}  Rb2 {[%clk 0:00:09]} 64. Nf2 {[%clk 0:00:01]}  Rb1 {[%clk 0:00:08]} 65. Ne4 {[%clk 0:00:02]}  Rb3 {[%clk 0:00:07]} 66. Nf6 {[%clk 0:00:02]}  Rb1 {[%clk 0:00:06]} 67. Ne4 {[%clk 0:00:02]}  Rh1 {[%clk 0:00:06]} 68. Nf2 {[%clk 0:00:01]}  Ra1 {[%clk 0:00:05]} 69. Ne4 {[%clk 0:00:02]}  Ra2 {[%clk 0:00:06]} 70. Nf6 {[%clk 0:00:01]}  Ra6 {[%clk 0:00:05]} 71. Ne4 {[%clk 0:00:01]}  Rc6 {[%clk 0:00:05]} 72. Kf2 {[%clk 0:00:01]}  Kd3 {[%clk 0:00:06]} 73. Be1 {[%clk 0:00:01]}  Rc2+ {[%clk 0:00:06]} 74. Kf1 {[%clk 0:00:02]}  Ke3 {[%clk 0:00:06]} 75. Bf2+ {[%clk 0:00:01]}  Kxf3 {[%clk 0:00:06]} 76. Nd6 {[%clk 0:00:01]}  Rxf2+ {[%clk 0:00:06]} 0-1


[Site "https://www.chess.com"]

[Event "Titled Tuesday Blitz November 16 2021"]
[White "Belenkaya, Dina"]
[Black "Tabatabaei, M. Amin"]
[WhiteFideId "24142654"]
[BlackFideId "12521213"]
[WhiteElo "2196"]
[BlackElo "2555"]
[Result "0-1"]
[Round "01"]
[TimeControl "180+1"]
[Date "2021.11.16"]
[WhiteClock "0:00:11"]
[BlackClock "0:01:57"]

1. e4 {[%clk 0:02:59]}  c5 {[%clk 0:02:59]} 2. Nc3 {[%clk 0:02:58]}  Nc6 {[%clk 0:02:59]} 3. g3 {[%clk 0:02:57]}  g6 {[%clk 0:02:58]} 4. Bg2 {[%clk 0:02:57]}  Bg7 {[%clk 0:02:59]} 5. Nge2 {[%clk 0:02:53]}  Rb8 {[%clk 0:03:00]} 6. d3 {[%clk 0:02:53]}  b5 {[%clk 0:03:00]} 7. O-O {[%clk 0:02:50]}  e6 {[%clk 0:02:59]} 8. Bf4 {[%clk 0:02:35]}  d6 {[%clk 0:02:58]} 9. Qd2 {[%clk 0:02:28]}  h6 {[%clk 0:02:59]} 10. h4 {[%clk 0:02:26]}  Nf6 {[%clk 0:02:56]} 11. d4 {[%clk 0:02:20]}  b4 {[%clk 0:02:46]} 12. Na4 {[%clk 0:02:10]}  cxd4 {[%clk 0:02:46]} 13. e5 {[%clk 0:01:54]}  Nxe5 {[%clk 0:02:40]} 14. Nxd4 {[%clk 0:01:54]}  Bd7 {[%clk 0:02:35]} 15. Bxe5 {[%clk 0:01:47]}  dxe5 {[%clk 0:02:36]} 16. Nc6 {[%clk 0:01:48]}  Bxc6 {[%clk 0:02:24]} 17. Bxc6+ {[%clk 0:01:49]}  Kf8 {[%clk 0:02:25]} 18. Qe3 {[%clk 0:01:47]}  Qc7 {[%clk 0:02:24]} 19. Bg2 {[%clk 0:01:28]}  Kg8 {[%clk 0:02:21]} 20. c4 {[%clk 0:01:08]}  bxc3 {[%clk 0:02:17]} 21. Nxc3 {[%clk 0:01:06]}  Rxb2 {[%clk 0:02:13]} 22. Rac1 {[%clk 0:01:04]}  Qb6 {[%clk 0:02:05]} 23. Qxe5 {[%clk 0:00:56]}  Rxf2 {[%clk 0:02:05]} 24. Na4 {[%clk 0:00:18]}  Rxf1+ {[%clk 0:02:03]} 25. Kxf1 {[%clk 0:00:18]}  Qa6+ {[%clk 0:02:04]} 26. Kg1 {[%clk 0:00:12]}  Qxa4 {[%clk 0:02:03]} 27. Rc7 {[%clk 0:00:12]}  Qd1+ {[%clk 0:02:01]} 28. Bf1 {[%clk 0:00:12]}  Ng4 {[%clk 0:01:59]} 29. Qf4 {[%clk 0:00:12]}  Qd4+ {[%clk 0:01:56]} 30. Qxd4 {[%clk 0:00:11]}  Bxd4+ {[%clk 0:01:57]} 0-1


[Site "https://www.chess.com"]

[Event "Titled Tuesday Blitz November 16 2021"]
[White "Drygalov, Andrey"]
[Black "Migot, Tangi"]
[WhiteFideId "24171735"]
[BlackFideId "662445"]
[WhiteElo "2540"]
[BlackElo "2468"]
[Result "1-0"]
[Round "01"]
[TimeControl "180+1"]
[Date "2021.11.16"]
[WhiteClock "0:01:22"]
[BlackClock "0:00:09"]

1. e4 {[%clk 0:02:55]}  c5 {[%clk 0:02:48]} 2. Nf3 {[%clk 0:02:46]}  Nc6 {[%clk 0:02:47]} 3. Bb5 {[%clk 0:02:46]}  e6 {[%clk 0:02:47]} 4. Bxc6 {[%clk 0:02:45]}  bxc6 {[%clk 0:02:47]} 5. d3 {[%clk 0:02:46]}  Ne7 {[%clk 0:02:45]} 6. Qe2 {[%clk 0:02:46]}  Ng6 {[%clk 0:02:44]} 7. h4 {[%clk 0:02:40]}  h5 {[%clk 0:02:42]} 8. e5 {[%clk 0:02:40]}  Be7 {[%clk 0:02:38]} 9. Nbd2 {[%clk 0:02:35]}  Bxh4 {[%clk 0:02:01]} 10. Nxh4 {[%clk 0:02:26]}  Nxh4 {[%clk 0:02:01]} 11. g3 {[%clk 0:02:24]}  Ng6 {[%clk 0:01:52]} 12. Rxh5 {[%clk 0:02:23]}  Rxh5 {[%clk 0:01:34]} 13. Qxh5 {[%clk 0:02:23]}  d5 {[%clk 0:01:26]} 14. exd6 {[%clk 0:02:17]}  Qxd6 {[%clk 0:01:26]} 15. Ne4 {[%clk 0:02:16]}  Qd5 {[%clk 0:01:18]} 16. Qxd5 {[%clk 0:02:12]}  exd5 {[%clk 0:01:15]} 17. Nxc5 {[%clk 0:02:11]}  Bg4 {[%clk 0:01:13]} 18. Be3 {[%clk 0:02:08]}  Ke7 {[%clk 0:01:09]} 19. Kd2 {[%clk 0:02:07]}  Ne5 {[%clk 0:00:54]} 20. Kc3 {[%clk 0:02:05]}  Nf3 {[%clk 0:00:39]} 21. Rh1 {[%clk 0:02:00]}  Kd6 {[%clk 0:00:26]} 22. Rh7 {[%clk 0:01:56]}  Rg8 {[%clk 0:00:22]} 23. d4 {[%clk 0:01:54]}  Bf5 {[%clk 0:00:19]} 24. Rh1 {[%clk 0:01:51]}  Bg6 {[%clk 0:00:17]} 25. Bf4+ {[%clk 0:01:49]}  Ke7 {[%clk 0:00:16]} 26. g4 {[%clk 0:01:48]}  Re8 {[%clk 0:00:13]} 27. Rh3 {[%clk 0:01:48]}  Be4 {[%clk 0:00:12]} 28. b4 {[%clk 0:01:44]}  Kd8 {[%clk 0:00:11]} 29. a4 {[%clk 0:01:43]}  Kc8 {[%clk 0:00:12]} 30. b5 {[%clk 0:01:43]}  g5 {[%clk 0:00:11]} 31. Be3 {[%clk 0:01:42]}  Kc7 {[%clk 0:00:11]} 32. Nxe4 {[%clk 0:01:36]}  dxe4 {[%clk 0:00:11]} 33. Rh7 {[%clk 0:01:36]}  cxb5 {[%clk 0:00:10]} 34. axb5 {[%clk 0:01:32]}  Re7 {[%clk 0:00:10]} 35. Kb4 {[%clk 0:01:28]}  Rd7 {[%clk 0:00:09]} 36. c4 {[%clk 0:01:28]}  Nxd4 {[%clk 0:00:08]} 37. Bxd4 {[%clk 0:01:29]}  Rxd4 {[%clk 0:00:09]} 38. Rxf7+ {[%clk 0:01:29]}  Kb8 {[%clk 0:00:09]} 39. Re7 {[%clk 0:01:23]}  Rd2 {[%clk 0:00:08]} 40. Rxe4 {[%clk 0:01:23]}  Rxf2 {[%clk 0:00:09]} 41. Re5 {[%clk 0:01:23]}  Rb2+ {[%clk 0:00:08]} 42. Kc5 {[%clk 0:01:23]}  a6 {[%clk 0:00:08]} 43. Rxg5 {[%clk 0:01:22]}  axb5 {[%clk 0:00:08]} 44. cxb5 {[%clk 0:01:22]}  Rc2+ {[%clk 0:00:08]} 45. Kb6 {[%clk 0:01:22]}  Kc8 {[%clk 0:00:08]} 46. Rg8+ {[%clk 0:01:22]}  Kd7 {[%clk 0:00:09]} 47. Kb7 {[%clk 0:01:22]}  Rc7+ {[%clk 0:00:08]} 48. Kb6 {[%clk 0:01:22]}  Rc5 {[%clk 0:00:09]} 49. Kxc5 {[%clk 0:01:22]} 1-0


[Site "https://www.chess.com"]

[Event "Titled Tuesday Blitz November 16 2021"]
[White "Federzoni, Enzo"]
[Black "Yoo, Christopher Woojin"]
[WhiteFideId "2173301"]
[BlackFideId "30909694"]
[WhiteElo "1956"]
[BlackElo "2105"]
[Result "1/2-1/2"]
[Round "01"]
[TimeControl "180+1"]
[Date "2021.11.16"]
[WhiteClock "0:00:43"]
[BlackClock "0:00:03"]

1. e4 {[%clk 0:03:00]}  e5 {[%clk 0:02:49]} 2. Nf3 {[%clk 0:03:00]}  Nc6 {[%clk 0:02:47]} 3. d4 {[%clk 0:02:59]}  exd4 {[%clk 0:02:46]} 4. Nxd4 {[%clk 0:02:59]}  Qf6 {[%clk 0:02:47]} 5. Nxc6 {[%clk 0:02:56]}  Bc5 {[%clk 0:02:46]} 6. Qf3 {[%clk 0:02:56]}  bxc6 {[%clk 0:02:42]} 7. Nd2 {[%clk 0:02:55]}  d6 {[%clk 0:02:39]} 8. Nb3 {[%clk 0:02:52]}  Qxf3 {[%clk 0:02:35]} 9. gxf3 {[%clk 0:02:51]}  Bb6 {[%clk 0:02:36]} 10. a4 {[%clk 0:02:51]}  a5 {[%clk 0:02:35]} 11. Be3 {[%clk 0:02:51]}  Bxe3 {[%clk 0:02:28]} 12. fxe3 {[%clk 0:02:52]}  c5 {[%clk 0:02:28]} 13. Rg1 {[%clk 0:02:47]}  g6 {[%clk 0:02:27]} 14. e5 {[%clk 0:02:46]}  Be6 {[%clk 0:02:22]} 15. exd6 {[%clk 0:02:38]}  cxd6 {[%clk 0:02:21]} 16. O-O-O {[%clk 0:02:38]}  Ke7 {[%clk 0:02:21]} 17. Bb5 {[%clk 0:02:33]}  Nf6 {[%clk 0:02:20]} 18. e4 {[%clk 0:02:31]}  Rhc8 {[%clk 0:02:09]} 19. Rge1 {[%clk 0:02:24]}  Nh5 {[%clk 0:02:02]} 20. h4 {[%clk 0:02:11]}  Nf4 {[%clk 0:02:01]} 21. Rd2 {[%clk 0:02:03]}  h6 {[%clk 0:01:46]} 22. Red1 {[%clk 0:01:59]}  Rd8 {[%clk 0:01:45]} 23. Bc6 {[%clk 0:01:56]}  Ra6 {[%clk 0:01:28]} 24. Bb5 {[%clk 0:01:46]}  Raa8 {[%clk 0:00:44]} 25. Bc6 {[%clk 0:01:45]}  Ra7 {[%clk 0:00:25]} 26. Nxc5 {[%clk 0:01:40]}  Rc7 {[%clk 0:00:19]} 27. Nxe6 {[%clk 0:01:39]}  fxe6 {[%clk 0:00:20]} 28. Bb5 {[%clk 0:01:37]}  e5 {[%clk 0:00:18]} 29. b3 {[%clk 0:01:32]}  Ne6 {[%clk 0:00:19]} 30. Bc4 {[%clk 0:01:29]}  Nd4 {[%clk 0:00:19]} 31. f4 {[%clk 0:01:27]}  Rf8 {[%clk 0:00:09]} 32. fxe5 {[%clk 0:01:21]}  dxe5 {[%clk 0:00:10]} 33. c3 {[%clk 0:01:13]}  Rxc4 {[%clk 0:00:07]} 34. bxc4 {[%clk 0:01:10]}  Nb3+ {[%clk 0:00:07]} 35. Kc2 {[%clk 0:01:09]}  Nxd2 {[%clk 0:00:08]} 36. Rxd2 {[%clk 0:01:10]}  Rf4 {[%clk 0:00:07]} 37. Rd5 {[%clk 0:01:07]}  Rxe4 {[%clk 0:00:07]} 38. Rxa5 {[%clk 0:01:07]}  Rxc4 {[%clk 0:00:05]} 39. Rxe5+ {[%clk 0:01:07]}  Kd6 {[%clk 0:00:03]} 40. Ra5 {[%clk 0:01:04]}  Rxh4 {[%clk 0:00:03]} 41. Ra6+ {[%clk 0:01:04]}  Ke5 {[%clk 0:00:02]} 42. Rxg6 {[%clk 0:01:03]}  Rxa4 {[%clk 0:00:02]} 43. Rxh6 {[%clk 0:01:04]}  Ra8 {[%clk 0:00:02]} 44. Kd3 {[%clk 0:01:03]}  Rd8+ {[%clk 0:00:02]} 45. Kc2 {[%clk 0:01:02]}  Rc8 {[%clk 0:00:03]} 46. Kd3 {[%clk 0:00:56]}  Rd8+ {[%clk 0:00:03]} 47. Ke3 {[%clk 0:00:56]}  Rc8 {[%clk 0:00:04]} 48. Rh5+ {[%clk 0:00:53]}  Kd6 {[%clk 0:00:03]} 49. Kd4 {[%clk 0:00:53]}  Rg8 {[%clk 0:00:04]} 50. Rh7 {[%clk 0:00:50]}  Rg4+ {[%clk 0:00:03]} 51. Kd3 {[%clk 0:00:51]}  Rg3+ {[%clk 0:00:04]} 52. Kc4 {[%clk 0:00:51]}  Rf3 {[%clk 0:00:02]} 53. Kb4 {[%clk 0:00:50]}  Rf1 {[%clk 0:00:02]} 54. c4 {[%clk 0:00:46]}  Rb1+ {[%clk 0:00:02]} 55. Kc3 {[%clk 0:00:47]}  Rc1+ {[%clk 0:00:03]} 56. Kb3 {[%clk 0:00:47]}  Rb1+ {[%clk 0:00:03]} 57. Kc2 {[%clk 0:00:48]}  Rg1 {[%clk 0:00:03]} 58. Rh5 {[%clk 0:00:46]}  Rg3 {[%clk 0:00:03]} 59. Rd5+ {[%clk 0:00:44]}  Kc6 {[%clk 0:00:03]} 60. Rd3 {[%clk 0:00:45]}  Rg1 {[%clk 0:00:03]} 61. Kc3 {[%clk 0:00:45]}  Rf1 {[%clk 0:00:03]} 62. Rh3 {[%clk 0:00:44]}  Rf4 {[%clk 0:00:04]} 63. Rd3 {[%clk 0:00:44]}  Kc5 {[%clk 0:00:04]} 64. Rd5+ {[%clk 0:00:43]}  Kc6 {[%clk 0:00:04]} 65. Rh5 {[%clk 0:00:44]}  Rf1 {[%clk 0:00:04]} 66. Rh2 {[%clk 0:00:43]}  Kc5 {[%clk 0:00:04]} 67. Rh5+ {[%clk 0:00:43]}  Kc6 {[%clk 0:00:05]} 68. Rh6+ {[%clk 0:00:43]}  Kc5 {[%clk 0:00:04]} 69. Rh5+ {[%clk 0:00:44]}  Kd6 {[%clk 0:00:04]} 70. Rh6+ {[%clk 0:00:45]}  Kc7 {[%clk 0:00:04]} 71. Kb4 {[%clk 0:00:44]}  Rf5 {[%clk 0:00:04]} 72. c5 {[%clk 0:00:44]}  Rf1 {[%clk 0:00:04]} 73. Kb5 {[%clk 0:00:44]}  Rb1+ {[%clk 0:00:04]} 74. Kc4 {[%clk 0:00:44]}  Rc1+ {[%clk 0:00:05]} 75. Kd5 {[%clk 0:00:45]}  Rd1+ {[%clk 0:00:05]} 76. Kc4 {[%clk 0:00:45]}  Rb1 {[%clk 0:00:04]} 77. Kd5 {[%clk 0:00:44]}  Rd1+ {[%clk 0:00:04]} 78. Kc4 {[%clk 0:00:45]}  Rg1 {[%clk 0:00:04]} 79. Kb5 {[%clk 0:00:44]}  Rb1+ {[%clk 0:00:04]} 80. Kc4 {[%clk 0:00:45]}  Ra1 {[%clk 0:00:03]} 81. Kd5 {[%clk 0:00:43]}  Rd1+ {[%clk 0:00:03]} 1/2-1/2


[Site "https://www.chess.com"]

[Event "Titled Tuesday Blitz November 16 2021"]
[White "Guliev, Logman"]
[Black "Zierk, Steven"]
[WhiteFideId "13400061"]
[BlackFideId "2034255"]
[WhiteElo "2128"]
[BlackElo "2494"]
[Result "0-1"]
[Round "01"]
[TimeControl "180+1"]
[Date "2021.11.16"]
[WhiteClock "0:00:30"]
[BlackClock "0:01:25"]

1. e4 {[%clk 0:03:00]}  e6 {[%clk 0:02:59]} 2. d4 {[%clk 0:02:59]}  d5 {[%clk 0:02:59]} 3. Nc3 {[%clk 0:03:00]}  Bb4 {[%clk 0:02:59]} 4. e5 {[%clk 0:03:00]}  c5 {[%clk 0:02:59]} 5. a3 {[%clk 0:03:00]}  Bxc3+ {[%clk 0:03:00]} 6. bxc3 {[%clk 0:03:00]}  Qa5 {[%clk 0:03:00]} 7. Bd2 {[%clk 0:02:59]}  Qa4 {[%clk 0:03:01]} 8. Nf3 {[%clk 0:02:55]}  b6 {[%clk 0:03:00]} 9. Bd3 {[%clk 0:02:50]}  Ba6 {[%clk 0:03:00]} 10. Qe2 {[%clk 0:02:25]}  c4 {[%clk 0:02:59]} 11. O-O {[%clk 0:02:17]}  cxd3 {[%clk 0:02:55]} 12. cxd3 {[%clk 0:02:17]}  Ne7 {[%clk 0:02:53]} 13. Rab1 {[%clk 0:02:15]}  Nd7 {[%clk 0:02:51]} 14. Rb4 {[%clk 0:02:15]}  Qc6 {[%clk 0:02:51]} 15. c4 {[%clk 0:02:15]}  O-O {[%clk 0:02:47]} 16. Rc1 {[%clk 0:02:15]}  Rfc8 {[%clk 0:02:43]} 17. h4 {[%clk 0:02:14]}  dxc4 {[%clk 0:02:36]} 18. dxc4 {[%clk 0:02:12]}  Nd5 {[%clk 0:02:36]} 19. Ng5 {[%clk 0:01:59]}  h6 {[%clk 0:02:21]} 20. Nxf7 {[%clk 0:01:40]}  Kxf7 {[%clk 0:02:19]} 21. Qh5+ {[%clk 0:01:30]}  Kg8 {[%clk 0:02:19]} 22. cxd5 {[%clk 0:01:30]}  Qxd5 {[%clk 0:02:17]} 23. Re1 {[%clk 0:01:25]}  Bb7 {[%clk 0:02:13]} 24. Qg4 {[%clk 0:01:22]}  Kh8 {[%clk 0:02:04]} 25. Re3 {[%clk 0:01:16]}  Rg8 {[%clk 0:01:57]} 26. Rg3 {[%clk 0:01:12]}  Nxe5 {[%clk 0:01:50]} 27. dxe5 {[%clk 0:01:02]}  Qxd2 {[%clk 0:01:49]} 28. Rd4 {[%clk 0:01:03]}  Qe1+ {[%clk 0:01:43]} 29. Kh2 {[%clk 0:01:02]}  Bd5 {[%clk 0:01:39]} 30. Rf4 {[%clk 0:01:02]}  Qxe5 {[%clk 0:01:35]} 31. Rf7 {[%clk 0:00:58]}  Raf8 {[%clk 0:01:33]} 32. f4 {[%clk 0:00:54]}  Qd4 {[%clk 0:01:28]} 33. Rd7 {[%clk 0:00:30]}  Rxf4 {[%clk 0:01:25]} 0-1


[Site "https://www.chess.com"]

[Event "Titled Tuesday Blitz November 16 2021"]
[White "Kollars, Dmitrij"]
[Black "Poliannikov, Danila"]
[WhiteFideId "12909572"]
[BlackFideId "30935245"]
[WhiteElo "2584"]
[BlackElo "2493"]
[Result "1-0"]
[Round "01"]
[TimeControl "180+1"]
[Date "2021.11.16"]
[WhiteClock "0:01:11"]
[BlackClock "0:00:07"]

1. d4 {[%clk 0:03:00]}  Nf6 {[%clk 0:02:56]} 2. Nf3 {[%clk 0:02:59]}  e6 {[%clk 0:02:56]} 3. c4 {[%clk 0:03:00]}  d5 {[%clk 0:02:54]} 4. g3 {[%clk 0:03:00]}  Bb4+ {[%clk 0:02:54]} 5. Bd2 {[%clk 0:02:59]}  Be7 {[%clk 0:02:54]} 6. Bg2 {[%clk 0:02:59]}  O-O {[%clk 0:02:54]} 7. Qc2 {[%clk 0:02:58]}  c6 {[%clk 0:02:53]} 8. O-O {[%clk 0:02:58]}  Nbd7 {[%clk 0:02:53]} 9. Rd1 {[%clk 0:02:55]}  b6 {[%clk 0:02:52]} 10. Bf4 {[%clk 0:02:55]}  Bb7 {[%clk 0:02:48]} 11. Nbd2 {[%clk 0:02:37]}  Rc8 {[%clk 0:02:39]} 12. Rac1 {[%clk 0:02:27]}  c5 {[%clk 0:02:34]} 13. dxc5 {[%clk 0:02:23]}  Nxc5 {[%clk 0:02:27]} 14. Qb1 {[%clk 0:02:19]}  Qe8 {[%clk 0:01:53]} 15. Ne5 {[%clk 0:02:10]}  dxc4 {[%clk 0:01:45]} 16. Bxb7 {[%clk 0:02:11]}  Nxb7 {[%clk 0:01:46]} 17. Ndxc4 {[%clk 0:02:11]}  Nd5 {[%clk 0:01:44]} 18. Bd2 {[%clk 0:02:07]}  b5 {[%clk 0:01:38]} 19. Ne3 {[%clk 0:02:00]}  Nxe3 {[%clk 0:01:30]} 20. Bxe3 {[%clk 0:02:00]}  Rxc1 {[%clk 0:00:52]} 21. Qxc1 {[%clk 0:02:01]}  Qc8 {[%clk 0:00:46]} 22. Qxc8 {[%clk 0:01:54]}  Rxc8 {[%clk 0:00:46]} 23. Rd7 {[%clk 0:01:54]}  Bf6 {[%clk 0:00:42]} 24. Rxb7 {[%clk 0:01:36]}  Bxe5 {[%clk 0:00:42]} 25. Rxb5 {[%clk 0:01:36]}  Bb8 {[%clk 0:00:32]} 26. b4 {[%clk 0:01:24]}  h6 {[%clk 0:00:27]} 27. a4 {[%clk 0:01:20]}  Kf8 {[%clk 0:00:20]} 28. Rb7 {[%clk 0:01:15]}  a6 {[%clk 0:00:19]} 29. Rb6 {[%clk 0:01:15]}  Ba7 {[%clk 0:00:17]} 30. Rxa6 {[%clk 0:01:15]}  Bxe3 {[%clk 0:00:17]} 31. fxe3 {[%clk 0:01:16]}  Rc3 {[%clk 0:00:12]} 32. Kf2 {[%clk 0:01:14]}  Ke7 {[%clk 0:00:10]} 33. b5 {[%clk 0:01:14]}  Kf6 {[%clk 0:00:09]} 34. b6 {[%clk 0:01:13]}  Rb3 {[%clk 0:00:09]} 35. a5 {[%clk 0:01:13]}  Ke5 {[%clk 0:00:09]} 36. Ra7 {[%clk 0:01:13]}  f5 {[%clk 0:00:08]} 37. b7 {[%clk 0:01:11]}  Kd6 {[%clk 0:00:07]} 38. a6 {[%clk 0:01:11]}  Kc7 {[%clk 0:00:07]} 39. Ra8 {[%clk 0:01:11]} 1-0


[Site "https://www.chess.com"]

[Event "Titled Tuesday Blitz November 16 2021"]
[White "Martinez Alcantara, Jose Eduardo"]
[Black "SouS007"]
[WhiteFideId "3805662"]
[WhiteElo "2690"]
[BlackElo "2506"]
[Result "1-0"]
[Round "01"]
[TimeControl "180+1"]
[Date "2021.11.16"]
[WhiteClock "0:01:15"]
[BlackClock "0:00:57"]

1. e4 {[%clk 0:02:59]}  e5 {[%clk 0:02:58]} 2. Nf3 {[%clk 0:02:59]}  Nc6 {[%clk 0:02:57]} 3. Bb5 {[%clk 0:02:59]}  a6 {[%clk 0:02:57]} 4. Ba4 {[%clk 0:02:59]}  Nf6 {[%clk 0:02:58]} 5. d3 {[%clk 0:02:58]}  b5 {[%clk 0:02:57]} 6. Bb3 {[%clk 0:02:58]}  Be7 {[%clk 0:02:58]} 7. a4 {[%clk 0:02:58]}  Bb7 {[%clk 0:02:58]} 8. O-O {[%clk 0:02:57]}  O-O {[%clk 0:02:57]} 9. c3 {[%clk 0:02:56]}  d5 {[%clk 0:02:56]} 10. Nbd2 {[%clk 0:02:48]}  dxe4 {[%clk 0:02:51]} 11. dxe4 {[%clk 0:02:45]}  Re8 {[%clk 0:02:50]} 12. Bxf7+ {[%clk 0:01:53]}  Kxf7 {[%clk 0:02:44]} 13. Qb3+ {[%clk 0:01:52]}  Kg6 {[%clk 0:01:57]} 14. Nh4+ {[%clk 0:01:52]}  Kh5 {[%clk 0:01:44]} 15. Qf7+ {[%clk 0:01:51]}  g6 {[%clk 0:01:44]} 16. Ndf3 {[%clk 0:01:47]}  Rf8 {[%clk 0:01:35]} 17. Nf5 {[%clk 0:01:17]}  Rxf7 {[%clk 0:00:56]} 18. Ng3+ {[%clk 0:01:15]}  Kg4 {[%clk 0:00:57]} 19. h3# {[%clk 0:01:15]} 1-0


[Site "https://www.chess.com"]